[Event "Late-Titled-Tuesday-Blitz-April-30-2024"]
[Site "Chess.com"]
[Date "2024.04.30"]
[Round "3"]
[White "Akhayan"]
[Black "Brown_Mamba24"]
[Result "1-0"]
[WhiteElo "2478"]
[BlackElo "2635"]
[TimeControl "180+1"]
[EndTime "14:30:24 PDT"]
[Termination "Akhayan won by resignation"]

1. e4 {[%clk 0:02:57.7]} 1... c5 {[%clk 0:02:59.9]} 2. Nf3 {[%clk 0:02:57.5]}
2... g6 {[%clk 0:02:59.6]} 3. Nc3 {[%clk 0:02:56.7]} 3... Nc6 {[%clk 0:02:59.1]}
4. Bc4 {[%clk 0:02:54.3]} 4... Bg7 {[%clk 0:02:58.3]} 5. O-O {[%clk 0:02:54.9]}
5... a6 {[%clk 0:02:57]} 6. Bd5 {[%clk 0:02:53.1]} 6... Nd4 {[%clk 0:02:52.3]}
7. d3 {[%clk 0:02:40.7]} 7... e6 {[%clk 0:02:51.1]} 8. Bb3 {[%clk 0:02:39.9]}
8... Ne7 {[%clk 0:02:48.5]} 9. Nxd4 {[%clk 0:02:35.5]} 9... cxd4 {[%clk
0:02:47.5]} 10. Ne2 {[%clk 0:02:36.1]} 10... d5 {[%clk 0:02:47.3]} 11. c3 {[%clk
0:02:31.6]} 11... dxc3 {[%clk 0:02:42.9]} 12. Nxc3 {[%clk 0:02:31.5]} 12... dxe4
{[%clk 0:02:42.2]} 13. dxe4 {[%clk 0:02:21.7]} 13... Qxd1 {[%clk 0:02:26.6]} 14.
Rxd1 {[%clk 0:02:20.6]} 14... b5 {[%clk 0:02:27]} 15. Bg5 {[%clk 0:02:16.9]}
15... Bb7 {[%clk 0:02:24.8]} 16. Rac1 {[%clk 0:02:14.7]} 16... Nc6 {[%clk
0:02:21]} 17. Nd5 {[%clk 0:01:53.3]} 17... exd5 {[%clk 0:02:12.8]} 18. Bxd5
{[%clk 0:01:52.8]} 18... Rc8 {[%clk 0:02:07.7]} 19. Bxc6+ {[%clk 0:01:45.6]}
19... Bxc6 {[%clk 0:02:06.6]} 20. Rxc6 {[%clk 0:01:44]} 20... O-O {[%clk
0:02:06.3]} 21. Rxc8 {[%clk 0:01:22.7]} 21... Rxc8 {[%clk 0:02:07.2]} 22. b3
{[%clk 0:01:21.3]} 22... f6 {[%clk 0:01:57.4]} 23. Be3 {[%clk 0:01:16]} 23...
Rc2 {[%clk 0:01:56]} 24. a4 {[%clk 0:00:53.7]} 24... bxa4 {[%clk 0:01:52.3]} 25.
bxa4 {[%clk 0:00:53.3]} 25... Ra2 {[%clk 0:01:52.7]} 26. h4 {[%clk 0:00:47.5]}
26... Rxa4 {[%clk 0:01:52]} 27. f3 {[%clk 0:00:47]} 27... Bf8 {[%clk 0:01:47.6]}
28. Rd8 {[%clk 0:00:44.7]} 28... Rc4 {[%clk 0:01:39.7]} 29. Ra8 {[%clk
0:00:41.8]} 29... Kf7 {[%clk 0:01:33.6]} 30. Rxa6 {[%clk 0:00:36.4]} 30... h5
{[%clk 0:01:30.3]} 31. Ra7+ {[%clk 0:00:36.2]} 31... Ke6 {[%clk 0:01:29.6]} 32.
Ra6+ {[%clk 0:00:36]} 32... Kf7 {[%clk 0:01:28]} 33. Bf4 {[%clk 0:00:34.3]}
33... f5 {[%clk 0:01:24.3]} 34. Ra7+ {[%clk 0:00:31.5]} 34... Ke6 {[%clk
0:01:23.2]} 35. exf5+ {[%clk 0:00:31.7]} 35... gxf5 {[%clk 0:01:18.3]} 36. Be3
{[%clk 0:00:28.6]} 36... f4 {[%clk 0:01:18.1]} 37. Bf2 {[%clk 0:00:28.5]} 37...
Rc1+ {[%clk 0:01:14]} 38. Kh2 {[%clk 0:00:28.7]} 38... Rc2 {[%clk 0:01:14.7]}
39. Ra6+ {[%clk 0:00:27.5]} 39... Kf5 {[%clk 0:01:14]} 40. Kg1 {[%clk
0:00:26.9]} 40... Bg7 {[%clk 0:01:07.2]} 41. Ra5+ {[%clk 0:00:25.5]} 41... Be5
{[%clk 0:01:06.5]} 42. Bd4 {[%clk 0:00:22.3]} 42... Rc1+ {[%clk 0:00:52]} 43.
Kh2 {[%clk 0:00:21.7]} 43... Re1 {[%clk 0:00:48.8]} 44. Rxe5+ {[%clk 0:00:20.2]}
44... Rxe5 {[%clk 0:00:49.7]} 45. Bxe5 {[%clk 0:00:20.3]} 45... Kxe5 {[%clk
0:00:50.6]} 46. g3 {[%clk 0:00:19.7]} 46... fxg3+ {[%clk 0:00:46.2]} 47. Kxg3
{[%clk 0:00:19.8]} 47... Kf5 {[%clk 0:00:46.9]} 48. Kh3 {[%clk 0:00:18.7]} 48...
Kf4 {[%clk 0:00:46.4]} 49. Kg2 {[%clk 0:00:19]} 49... Ke5 {[%clk 0:00:44]} 50.
Kf1 {[%clk 0:00:17]} 50... Kf4 {[%clk 0:00:38.2]} 51. Kf2 {[%clk 0:00:16.6]}
51... Kf5 {[%clk 0:00:34.2]} 52. Ke3 {[%clk 0:00:16.9]} 52... Ke5 {[%clk
0:00:29.7]} 53. f4+ {[%clk 0:00:16.7]} 53... Kd5 {[%clk 0:00:27.3]} 54. Kd3
{[%clk 0:00:13.9]} 54... Kd6 {[%clk 0:00:20.6]} 55. Kd4 {[%clk 0:00:13.7]} 55...
Ke6 {[%clk 0:00:17.5]} 56. Ke4 {[%clk 0:00:14]} 56... Kf6 {[%clk 0:00:08.1]} 57.
f5 {[%clk 0:00:14.3]} 57... Kf7 {[%clk 0:00:05.7]} 58. Ke5 {[%clk 0:00:14.6]}
58... Ke7 {[%clk 0:00:05.9]} 59. f6+ {[%clk 0:00:14.4]} 59... Kf8 {[%clk
0:00:05.2]} 60. Kf5 {[%clk 0:00:14.4]} 60... Kf7 {[%clk 0:00:05.3]} 61. Kg5
{[%clk 0:00:14.1]} 61... Ke6 {[%clk 0:00:03.4]} 62. Kg6 {[%clk 0:00:14.2]} 62...
Ke5 {[%clk 0:00:04]} 63. f7 {[%clk 0:00:14.6]} 63... Kf4 {[%clk 0:00:04.9]} 64.
f8=Q+ {[%clk 0:00:14.7]} 64... Kg4 {[%clk 0:00:05.8]} 65. Qc8+ {[%clk
0:00:14.2]} 65... Kxh4 {[%clk 0:00:06.7]} 66. Qc4+ {[%clk 0:00:14]} 66... Kg3
{[%clk 0:00:07.3]} 67. Kxh5 {[%clk 0:00:14]} 1-0

[Event "Late-Titled-Tuesday-Blitz-April-30-2024"]
[Site "Chess.com"]
[Date "2024.04.30"]
[Round "3"]
[White "Sacbutt"]
[Black "ArrestingPieces"]
[Result "0-1"]
[WhiteElo "2279"]
[BlackElo "2515"]
[TimeControl "180+1"]
[EndTime "14:30:24 PDT"]
[Termination "ArrestingPieces won on time"]

1. d4 {[%clk 0:03:00.9]} 1... d5 {[%clk 0:02:57.9]} 2. c4 {[%clk 0:03:00.7]}
2... e6 {[%clk 0:02:58.4]} 3. Nc3 {[%clk 0:03:00]} 3... Be7 {[%clk 0:02:58.4]}
4. Nf3 {[%clk 0:02:58.9]} 4... Nf6 {[%clk 0:02:58.8]} 5. Bg5 {[%clk 0:02:59.5]}
5... O-O {[%clk 0:02:58.9]} 6. e3 {[%clk 0:03:00.1]} 6... b6 {[%clk 0:02:59.5]}
7. Bxf6 {[%clk 0:02:58.5]} 7... Bxf6 {[%clk 0:02:59.5]} 8. cxd5 {[%clk
0:02:59.1]} 8... exd5 {[%clk 0:03:00]} 9. Bd3 {[%clk 0:02:59.3]} 9... Bb7 {[%clk
0:02:54.1]} 10. O-O {[%clk 0:02:59]} 10... c5 {[%clk 0:02:49.6]} 11. Rc1 {[%clk
0:02:38.9]} 11... c4 {[%clk 0:02:48.7]} 12. Bb1 {[%clk 0:02:31.7]} 12... g6
{[%clk 0:02:46.1]} 13. b3 {[%clk 0:02:26.7]} 13... cxb3 {[%clk 0:02:33.2]} 14.
Qxb3 {[%clk 0:02:18.6]} 14... Ba6 {[%clk 0:02:23.5]} 15. Rfd1 {[%clk 0:02:09.9]}
15... Bc4 {[%clk 0:02:23.5]} 16. Qa4 {[%clk 0:02:03]} 16... Qd7 {[%clk
0:02:20.2]} 17. Qxd7 {[%clk 0:01:44.3]} 17... Nxd7 {[%clk 0:02:21.1]} 18. e4
{[%clk 0:01:44.6]} 18... b5 {[%clk 0:02:02.5]} 19. Nxd5 {[%clk 0:01:38.3]} 19...
Bxd5 {[%clk 0:02:02.7]} 20. exd5 {[%clk 0:01:38.3]} 20... Rfc8 {[%clk
0:02:03.4]} 21. Rc6 {[%clk 0:01:33.1]} 21... Bg7 {[%clk 0:01:47.9]} 22. Rdc1
{[%clk 0:01:31.1]} 22... Nb6 {[%clk 0:01:48.4]} 23. Bd3 {[%clk 0:01:12.4]} 23...
Rd8 {[%clk 0:01:37.6]} 24. d6 {[%clk 0:01:01.9]} 24... b4 {[%clk 0:01:23.9]} 25.
Ne5 {[%clk 0:00:53.4]} 25... Bf8 {[%clk 0:01:19.4]} 26. Be4 {[%clk 0:00:31]}
26... Rab8 {[%clk 0:01:00.9]} 27. Rc7 {[%clk 0:00:19.1]} 27... Bxd6 {[%clk
0:00:40.5]} 28. Rxa7 {[%clk 0:00:18]} 28... Bxe5 {[%clk 0:00:40.7]} 29. dxe5
{[%clk 0:00:18.9]} 29... Nc4 {[%clk 0:00:41]} 30. g3 {[%clk 0:00:16.8]} 30...
Nxe5 {[%clk 0:00:40.2]} 31. Rb1 {[%clk 0:00:15.5]} 31... Rd7 {[%clk 0:00:34.1]}
32. Rxd7 {[%clk 0:00:13.9]} 32... Nxd7 {[%clk 0:00:35]} 33. Rb3 {[%clk
0:00:12.3]} 33... Nc5 {[%clk 0:00:34.1]} 34. Re3 {[%clk 0:00:12.9]} 34... Rd8
{[%clk 0:00:14.2]} 35. Kg2 {[%clk 0:00:11.5]} 35... Rd2 {[%clk 0:00:14.2]} 36.
Bb1 {[%clk 0:00:07.5]} 36... Rb2 {[%clk 0:00:12.7]} 37. Re1 {[%clk 0:00:07.3]}
37... Na4 {[%clk 0:00:11.8]} 38. Rc1 {[%clk 0:00:05.9]} 38... Nc3 {[%clk
0:00:11.9]} 39. Bd3 {[%clk 0:00:05.1]} 39... Rxa2 {[%clk 0:00:11]} 40. Bc4
{[%clk 0:00:04.6]} 40... Rd2 {[%clk 0:00:08.9]} 41. Re1 {[%clk 0:00:05]} 41...
Rd7 {[%clk 0:00:07.8]} 42. Re8+ {[%clk 0:00:05]} 42... Kg7 {[%clk 0:00:07.6]}
43. Rb8 {[%clk 0:00:05.6]} 43... Rd2 {[%clk 0:00:04.7]} 44. Rxb4 {[%clk
0:00:05.5]} 44... Nd1 {[%clk 0:00:04.7]} 45. h3 {[%clk 0:00:04.7]} 45... Rxf2+
{[%clk 0:00:04.9]} 46. Kg1 {[%clk 0:00:04.9]} 46... Rd2 {[%clk 0:00:03.3]} 47.
Rb1 {[%clk 0:00:04.7]} 47... Ne3 {[%clk 0:00:03.6]} 48. Rc1 {[%clk 0:00:03.8]}
48... Nxc4 {[%clk 0:00:03.6]} 49. Rxc4 {[%clk 0:00:03.5]} 49... h5 {[%clk
0:00:04.5]} 50. h4 {[%clk 0:00:03.2]} 50... Kf6 {[%clk 0:00:04.9]} 51. Rc3
{[%clk 0:00:03.5]} 51... Kf5 {[%clk 0:00:04.5]} 52. Rb3 {[%clk 0:00:04.1]} 52...
Kg4 {[%clk 0:00:04.9]} 53. Ra3 {[%clk 0:00:04.7]} 53... f5 {[%clk 0:00:05]} 54.
Kf1 {[%clk 0:00:05]} 54... Kh3 {[%clk 0:00:05.2]} 55. Rb3 {[%clk 0:00:05.1]}
55... Kg4 {[%clk 0:00:05.5]} 56. Kg1 {[%clk 0:00:05.5]} 56... f4 {[%clk
0:00:06]} 57. Kf1 {[%clk 0:00:05.9]} 57... fxg3 {[%clk 0:00:06]} 58. Ke1 {[%clk
0:00:06.4]} 58... Ra2 {[%clk 0:00:05.4]} 0-1

[Event "Late-Titled-Tuesday-Blitz-April-30-2024"]
[Site "Chess.com"]
[Date "2024.04.30"]
[Round "3"]
[White "GiorgianBarbosa"]
[Black "GolfBeforeChess"]
[Result "0-1"]
[WhiteElo "2521"]
[BlackElo "2325"]
[TimeControl "180+1"]
[EndTime "14:30:27 PDT"]
[Termination "GolfBeforeChess won on time"]

1. c3 {[%clk 0:02:57.6]} 1... Nf6 {[%clk 0:02:58.1]} 2. d4 {[%clk 0:02:58.5]}
2... b6 {[%clk 0:02:57.7]} 3. Nf3 {[%clk 0:02:59.1]} 3... Bb7 {[%clk 0:02:57.5]}
4. g3 {[%clk 0:03:00]} 4... c5 {[%clk 0:02:57.9]} 5. Bg2 {[%clk 0:03:00.2]} 5...
g6 {[%clk 0:02:58.4]} 6. O-O {[%clk 0:03:00.7]} 6... Bg7 {[%clk 0:02:58.9]} 7.
dxc5 {[%clk 0:03:00.5]} 7... bxc5 {[%clk 0:02:58.7]} 8. Nfd2 {[%clk 0:02:56.9]}
8... Bxg2 {[%clk 0:02:57.8]} 9. Kxg2 {[%clk 0:02:57.8]} 9... O-O {[%clk
0:02:57.2]} 10. e4 {[%clk 0:02:58.2]} 10... d6 {[%clk 0:02:57.2]} 11. Qe2 {[%clk
0:02:57.8]} 11... Nc6 {[%clk 0:02:56.4]} 12. Nc4 {[%clk 0:02:57.9]} 12... Nd7
{[%clk 0:02:55.6]} 13. a4 {[%clk 0:02:57.1]} 13... Rb8 {[%clk 0:02:54.9]} 14.
Nba3 {[%clk 0:02:56.8]} 14... Nde5 {[%clk 0:02:51.3]} 15. h4 {[%clk 0:02:56.3]}
15... Nxc4 {[%clk 0:02:50.9]} 16. Nxc4 {[%clk 0:02:57.2]} 16... Ne5 {[%clk
0:02:51.2]} 17. Nxe5 {[%clk 0:02:57.1]} 17... Bxe5 {[%clk 0:02:51.1]} 18. Bh6
{[%clk 0:02:55.6]} 18... Re8 {[%clk 0:02:46.7]} 19. h5 {[%clk 0:02:55.2]} 19...
Qb6 {[%clk 0:02:46.5]} 20. Rab1 {[%clk 0:02:53.4]} 20... Qb7 {[%clk 0:02:46.4]}
21. Rh1 {[%clk 0:02:48.7]} 21... d5 {[%clk 0:02:31.3]} 22. hxg6 {[%clk
0:02:46.1]} 22... fxg6 {[%clk 0:02:20.5]} 23. Qg4 {[%clk 0:02:45]} 23... Qc8
{[%clk 0:02:16.1]} 24. Qh4 {[%clk 0:02:42.3]} 24... Qe6 {[%clk 0:02:10.8]} 25.
Bf4 {[%clk 0:02:29.9]} 25... h5 {[%clk 0:01:47.6]} 26. Bxe5 {[%clk 0:01:26.9]}
26... Qxe5 {[%clk 0:01:47]} 27. exd5 {[%clk 0:01:27]} 27... Qxd5+ {[%clk
0:01:46.8]} 28. Kh2 {[%clk 0:01:26.2]} 28... Rf8 {[%clk 0:01:44.9]} 29. Rhf1
{[%clk 0:01:26.1]} 29... Rf6 {[%clk 0:01:38.3]} 30. Rbd1 {[%clk 0:01:19.7]}
30... Qf7 {[%clk 0:01:30]} 31. Kg1 {[%clk 0:01:14.9]} 31... Rf8 {[%clk
0:01:29.5]} 32. Rd2 {[%clk 0:01:14.1]} 32... Rf3 {[%clk 0:01:22.6]} 33. Qg5
{[%clk 0:01:13.1]} 33... Qf5 {[%clk 0:01:18.2]} 34. Qxf5 {[%clk 0:01:08.5]}
34... R3xf5 {[%clk 0:01:16.7]} 35. Re2 {[%clk 0:01:09.4]} 35... R8f7 {[%clk
0:01:13.9]} 36. Rd1 {[%clk 0:01:09.8]} 36... c4 {[%clk 0:01:03.5]} 37. Rd4
{[%clk 0:01:06]} 37... Rc5 {[%clk 0:01:03.4]} 38. Ree4 {[%clk 0:01:05.9]} 38...
Rcf5 {[%clk 0:00:53.4]} 39. f4 {[%clk 0:01:05.3]} 39... g5 {[%clk 0:00:51.6]}
40. Rxc4 {[%clk 0:01:05.4]} 40... h4 {[%clk 0:00:50.2]} 41. gxh4 {[%clk
0:00:52.6]} 41... gxf4 {[%clk 0:00:46.4]} 42. Kf2 {[%clk 0:00:52.1]} 42... f3
{[%clk 0:00:45.1]} 43. b4 {[%clk 0:00:48.5]} 43... e5 {[%clk 0:00:35.3]} 44. b5
{[%clk 0:00:47.4]} 44... Rd7 {[%clk 0:00:34.9]} 45. Rg4+ {[%clk 0:00:25]} 45...
Kf7 {[%clk 0:00:32.3]} 46. Rg5 {[%clk 0:00:20.5]} 46... Rf6 {[%clk 0:00:25.1]}
47. Rc6 {[%clk 0:00:13.5]} 47... Rd2+ {[%clk 0:00:23.3]} 48. Kf1 {[%clk
0:00:13.9]} 48... Rd1+ {[%clk 0:00:20.9]} 49. Kf2 {[%clk 0:00:14.1]} 49... Rd2+
{[%clk 0:00:20.8]} 50. Kf1 {[%clk 0:00:09.5]} 50... e4 {[%clk 0:00:21.2]} 51.
Rxf6+ {[%clk 0:00:09]} 51... Kxf6 {[%clk 0:00:21.3]} 52. Rg4 {[%clk 0:00:08.1]}
52... Kf5 {[%clk 0:00:21.1]} 53. Rg8 {[%clk 0:00:07.9]} 53... e3 {[%clk
0:00:20.7]} 54. Rf8+ {[%clk 0:00:08.1]} 54... Ke4 {[%clk 0:00:21.1]} 55. Re8+
{[%clk 0:00:08.3]} 55... Kd3 {[%clk 0:00:21.4]} 56. Rd8+ {[%clk 0:00:08.7]}
56... Kxc3 {[%clk 0:00:21.2]} 57. Rc8+ {[%clk 0:00:06.5]} 57... Kb4 {[%clk
0:00:21.3]} 58. Rc1 {[%clk 0:00:06.6]} 58... Rh2 {[%clk 0:00:17.8]} 59. Kg1
{[%clk 0:00:06.7]} 59... Rg2+ {[%clk 0:00:17.9]} 60. Kh1 {[%clk 0:00:07.1]}
60... Rg4 {[%clk 0:00:17.2]} 61. Kh2 {[%clk 0:00:06.1]} 61... f2 {[%clk
0:00:15.9]} 62. Rb1+ {[%clk 0:00:04.7]} 62... Kc3 {[%clk 0:00:15.5]} 0-1

[Event "Late-Titled-Tuesday-Blitz-April-30-2024"]
[Site "Chess.com"]
[Date "2024.04.30"]
[Round "3"]
[White "laskakid"]
[Black "Sesleria"]
[Result "1/2-1/2"]
[WhiteElo "2390"]
[BlackElo "2134"]
[TimeControl "180+1"]
[EndTime "14:30:31 PDT"]
[Termination "Game drawn by repetition"]

1. e4 {[%clk 0:03:00.9]} 1... c5 {[%clk 0:02:59.4]} 2. Nf3 {[%clk 0:03:00.6]}
2... e6 {[%clk 0:02:59.7]} 3. d3 {[%clk 0:03:00.5]} 3... g6 {[%clk 0:02:57.8]}
4. g3 {[%clk 0:02:59.5]} 4... Bg7 {[%clk 0:02:58.1]} 5. Bg2 {[%clk 0:02:59.5]}
5... Nc6 {[%clk 0:02:56.3]} 6. O-O {[%clk 0:02:59.1]} 6... Nf6 {[%clk 0:02:54]}
7. Re1 {[%clk 0:02:54.1]} 7... d5 {[%clk 0:02:48.4]} 8. e5 {[%clk 0:02:31.3]}
8... Ng4 {[%clk 0:02:30.7]} 9. Bf4 {[%clk 0:02:28.8]} 9... Qb6 {[%clk
0:02:17.4]} 10. Qc1 {[%clk 0:02:19.2]} 10... c4 {[%clk 0:02:07.7]} 11. Re2
{[%clk 0:02:10.4]} 11... cxd3 {[%clk 0:02:07]} 12. cxd3 {[%clk 0:02:10]} 12...
h5 {[%clk 0:01:40.6]} 13. h3 {[%clk 0:02:05.4]} 13... Nh6 {[%clk 0:01:40.6]} 14.
Nc3 {[%clk 0:01:54.5]} 14... Bd7 {[%clk 0:01:27.2]} 15. Na4 {[%clk 0:01:47.2]}
15... Qa5 {[%clk 0:01:23.2]} 16. Nc5 {[%clk 0:01:45.1]} 16... Rc8 {[%clk
0:01:10.3]} 17. Nxb7 {[%clk 0:01:40.4]} 17... Qa6 {[%clk 0:01:00.8]} 18. Nd6+
{[%clk 0:01:39.6]} 18... Ke7 {[%clk 0:01:01.4]} 19. Nxc8+ {[%clk 0:01:39.1]}
19... Qxc8 {[%clk 0:01:00.7]} 20. Rc2 {[%clk 0:01:33]} 20... Qb7 {[%clk
0:00:53]} 21. Bg5+ {[%clk 0:01:27.4]} 21... Ke8 {[%clk 0:00:43.3]} 22. Qe3
{[%clk 0:01:25]} 22... Nf5 {[%clk 0:00:42]} 23. Qc5 {[%clk 0:01:19.4]} 23... Bf8
{[%clk 0:00:41.2]} 24. Qc3 {[%clk 0:01:12.6]} 24... Bb4 {[%clk 0:00:35.4]} 25.
Qb3 {[%clk 0:01:07.2]} 25... Nfd4 {[%clk 0:00:32.3]} 26. Qa4 {[%clk 0:01:00.3]}
26... Nxc2 {[%clk 0:00:30.9]} 27. Qxc2 {[%clk 0:01:00.2]} 27... Be7 {[%clk
0:00:28.5]} 28. Bxe7 {[%clk 0:00:58]} 28... Nxe7 {[%clk 0:00:27.4]} 29. d4
{[%clk 0:00:55.2]} 29... Bb5 {[%clk 0:00:26.5]} 30. Rc1 {[%clk 0:00:53.6]} 30...
Kd7 {[%clk 0:00:26.4]} 31. Ng5 {[%clk 0:00:50.6]} 31... Rc8 {[%clk 0:00:26.5]}
32. Qd2 {[%clk 0:00:49.2]} 32... Rxc1+ {[%clk 0:00:26.8]} 33. Qxc1 {[%clk
0:00:49.5]} 33... Ke8 {[%clk 0:00:24.6]} 34. Qf4 {[%clk 0:00:47.8]} 34... Nc6
{[%clk 0:00:20.7]} 35. Qf6 {[%clk 0:00:43.4]} 35... Qe7 {[%clk 0:00:19.4]} 36.
Qxe7+ {[%clk 0:00:42.5]} 36... Kxe7 {[%clk 0:00:19.8]} 37. Nf3 {[%clk
0:00:39.5]} 37... Bc4 {[%clk 0:00:20]} 38. a3 {[%clk 0:00:37.9]} 38... Be2
{[%clk 0:00:19.4]} 39. g4 {[%clk 0:00:28.8]} 39... hxg4 {[%clk 0:00:19.2]} 40.
hxg4 {[%clk 0:00:29]} 40... Bxf3 {[%clk 0:00:19.7]} 41. Bxf3 {[%clk 0:00:29]}
41... Nxd4 {[%clk 0:00:20.5]} 42. Bd1 {[%clk 0:00:29.2]} 42... Kd7 {[%clk
0:00:19.9]} 43. Kf1 {[%clk 0:00:29.5]} 43... f6 {[%clk 0:00:19.1]} 44. exf6
{[%clk 0:00:28.1]} 44... g5 {[%clk 0:00:19.7]} 45. Ke1 {[%clk 0:00:24.4]} 45...
e5 {[%clk 0:00:19.9]} 46. Kd2 {[%clk 0:00:24.4]} 46... Ke6 {[%clk 0:00:20.3]}
47. Ke3 {[%clk 0:00:24.1]} 47... Kxf6 {[%clk 0:00:20.7]} 48. b4 {[%clk
0:00:21.2]} 48... Ke6 {[%clk 0:00:21]} 49. a4 {[%clk 0:00:21.3]} 49... Kd6
{[%clk 0:00:21.4]} 50. Bf3 {[%clk 0:00:16.1]} 50... Nc2+ {[%clk 0:00:19.5]} 51.
Kd2 {[%clk 0:00:15.4]} 51... Nxb4 {[%clk 0:00:20.4]} 52. Kc3 {[%clk 0:00:15.6]}
52... Nc6 {[%clk 0:00:20.6]} 53. Be2 {[%clk 0:00:14.6]} 53... Nd4 {[%clk
0:00:20.4]} 54. Ba6 {[%clk 0:00:13.9]} 54... Kc5 {[%clk 0:00:20.7]} 55. Bc8
{[%clk 0:00:13]} 55... Ne2+ {[%clk 0:00:20.4]} 56. Kd2 {[%clk 0:00:12.3]} 56...
Nf4 {[%clk 0:00:21.1]} 57. Kc3 {[%clk 0:00:12]} 57... d4+ {[%clk 0:00:21.1]} 58.
Kd2 {[%clk 0:00:12]} 58... e4 {[%clk 0:00:21.2]} 59. Bf5 {[%clk 0:00:11.5]}
59... Kc4 {[%clk 0:00:21.1]} 60. Bxe4 {[%clk 0:00:11.4]} 60... Kb4 {[%clk
0:00:19.6]} 61. Bc6 {[%clk 0:00:11.4]} 61... Kc4 {[%clk 0:00:16.3]} 62. Be8
{[%clk 0:00:11.2]} 62... Kb4 {[%clk 0:00:15.9]} 63. Bd7 {[%clk 0:00:11.2]} 63...
Kc4 {[%clk 0:00:16.4]} 64. f3 {[%clk 0:00:11.6]} 64... Kb4 {[%clk 0:00:16.6]}
65. Be8 {[%clk 0:00:11.7]} 65... Kc4 {[%clk 0:00:17.1]} 66. Kc2 {[%clk
0:00:11.7]} 66... Kb4 {[%clk 0:00:16.4]} 67. Kd2 {[%clk 0:00:12]} 67... Kc4
{[%clk 0:00:16.8]} 68. Bd7 {[%clk 0:00:12]} 68... Kb4 {[%clk 0:00:17.2]} 69. Bc6
{[%clk 0:00:11.9]} 69... Kc4 {[%clk 0:00:17.6]} 70. a5 {[%clk 0:00:10.5]} 70...
Kb4 {[%clk 0:00:17.8]} 71. a6 {[%clk 0:00:10.9]} 71... Kc4 {[%clk 0:00:17.8]}
72. Bb7 {[%clk 0:00:10.9]} 72... Kb4 {[%clk 0:00:17.9]} 73. Kc2 {[%clk
0:00:10.7]} 73... Kc4 {[%clk 0:00:18.4]} 74. Kd2 {[%clk 0:00:11]} 74... Kb4
{[%clk 0:00:18.9]} 75. Kc2 {[%clk 0:00:11.4]} 75... Kc4 {[%clk 0:00:19.5]} 76.
Kd2 {[%clk 0:00:11.8]} 1/2-1/2